fUST/lending_fUST_20240208
["ID","MTS","AMOUNT","RATE_DAILY","PERIOD"]
[313496380,1707402631804,-500.0,0.00042399,30]
[313496383,1707402631834,-613.89120917,0.00042399,30]
[313496385,1707402631864,-522.47564339,0.00042399,30]
[313496386,1707402631895,-500.0,0.00042399,30]
[313496388,1707402631926,-318.16146214,0.00042399,30]
[313496391,1707402631952,-519.09286165,0.00042399,30]
[313496395,1707402631981,-649.62372861,0.00042399,30]
[313496399,1707402632011,-500.0,0.00042399,30]
[313496403,1707402632039,-524.01019714,0.00042399,30]
[313496407,1707402632067,-515.19907462,0.00042399,30]
[313496411,1707402632092,-500.0,0.00042399,30]
[313496414,1707402632118,-346.07387972,0.00042399,30]
[313496419,1707402632147,-500.0,0.00042399,30]
[313496422,1707402632174,-516.03314988,0.00042399,30]
[313496426,1707402632201,-500.0,0.00042399,30]
[313496430,1707402632230,-519.74527992,0.00042399,30]
[313496434,1707402632261,-506.59534634,0.00042399,30]
[313496438,1707402632290,-500.0,0.00042399,30]
[313496442,1707402632319,-623.71637846,0.00042399,30]
[313496446,1707402632346,-580.71902143,0.00042399,30]
[313496449,1707402632373,-500.0,0.00042399,30]
[313496450,1707402632403,-606.9231663,0.00042399,30]
[313496451,1707402632434,-560.60850722,0.00042399,30]
[313496452,1707402632464,-486.24029959,0.00042399,30]
[313496453,1707402632500,-636.30464016,0.00042399,30]
[313496454,1707402632528,-621.92572577,0.00042399,30]
[313496455,1707402632674,-500.0,0.00042399,30]
[313496456,1707402632698,-500.0,0.00042399,30]
[313496457,1707402632723,-525.96182282,0.00042399,30]
[313496458,1707402632750,-500.0,0.00042399,30]
[313496459,1707402632775,-500.0,0.00042399,30]
[313496460,1707402632799,-513.912666,0.00042399,30]
[313496461,1707402632824,-500.0,0.00042399,30]
[313496462,1707402632848,-523.52608146,0.00042399,30]
[313496463,1707402632873,-500.0,0.00042399,30]
[313496464,1707402632898,-500.0,0.00042399,30]
[313496465,1707402632923,-500.0,0.00042399,30]
[313496466,1707402632948,-500.0,0.00042399,30]
[313496467,1707402632973,-500.0,0.00042399,30]
[313496468,1707402632998,-500.0,0.00042399,30]
[313496469,1707402633022,-500.0,0.00042399,30]
[313496470,1707402633046,-500.0,0.00042399,30]
[313496471,1707402633070,-500.0,0.00042399,30]
[313496472,1707402633095,-500.0,0.00042399,30]
[313496473,1707402633120,-189.79132099,0.00042399,30]
[313496474,1707402633145,-500.0,0.00042399,30]
[313496475,1707402633170,-500.0,0.00042399,30]
[313496476,1707402633194,-500.0,0.00042399,30]
[313496477,1707402633221,-500.0,0.00042399,30]
[313496478,1707402633249,-500.0,0.00042399,30]
[313496479,1707402633275,-500.0,0.00042399,30]
[313496480,1707402633301,-500.0,0.00042399,30]
[313496481,1707402633326,-500.0,0.00042399,30]
[313496482,1707402633352,-500.0,0.00042399,30]
[313496483,1707402633378,-471.86826206,0.00042399,30]
[313496484,1707402633404,-560.909274,0.00042399,30]
[313496485,1707402633431,-500.0,0.00042399,30]
[313496486,1707402633457,-517.61013394,0.00042399,30]
[313496487,1707402633489,-500.0,0.00042399,30]
[313496488,1707402633516,-399.70433081,0.00042399,30]
[313496489,1707402633541,-156.61274262,0.00042399,30]
[313496490,1707402633567,-510.67420533,0.00042399,30]
[313496491,1707402633593,-500.0,0.00042399,30]
[313496492,1707402633618,-526.05235106,0.00042399,30]
[313496493,1707402633643,-500.0,0.00042399,30]
[313496494,1707402633670,-561.24586151,0.00042399,30]
[313496495,1707402633694,-598.98234989,0.00042399,30]
[313496496,1707402633718,-500.0,0.00042399,30]
[313496497,1707402633746,-506.76551845,0.00042399,30]
[313496498,1707402633770,-500.0,0.00042399,30]
[313496499,1707402633796,-500.0,0.00042399,30]
[313496500,1707402633820,-534.30269834,0.00042399,30]
[313496501,1707402633845,-189.99,0.00042399,30]
[313496502,1707402633868,-500.0,0.00042399,30]
[313496503,1707402633893,-500.0,0.00042399,30]
[313496504,1707402633918,-500.0,0.00042399,30]
[313496505,1707402633942,-518.84318191,0.00042399,30]
[313496506,1707402633967,-500.0,0.00042399,30]
[313496507,1707402633991,-500.0,0.00042399,30]
[313496508,1707402634016,-506.54042889,0.00042399,30]
[313496509,1707402634042,-647.47232055,0.00042399,30]
[313496510,1707402634067,-500.0,0.00042399,30]
[313496511,1707402634095,-170.0,0.00042399,30]
[313496512,1707402634119,-508.12953648,0.00042399,30]
[313496513,1707402634144,-501.19773358,0.00042399,30]
[313496514,1707402634169,-630.50184046,0.00042399,30]
[313496515,1707402634195,-500.0,0.00042399,30]
[313496516,1707402634219,-507.58486247,0.00042399,30]
[313496517,1707402634246,-500.0,0.00042399,30]
[313496518,1707402634273,-500.0,0.00042399,30]
[313496519,1707402634299,-153.7868707,0.00042399,30]
[313496520,1707402634323,-510.11509665,0.00042399,30]
[313496521,1707402634347,-500.0,0.00042399,30]
[313496522,1707402634371,-500.0,0.00042399,30]
[313496523,1707402634398,-500.0,0.00042399,30]
[313496524,1707402634422,-522.26870475,0.00042399,30]
[313496525,1707402634447,-500.0,0.00042399,30]
[313496526,1707402634474,-500.0,0.00042399,30]
[313496527,1707402634500,-500.0,0.00042399,30]
[313496528,1707402634526,-500.0,0.00042399,30]
[313496529,1707402634550,-500.0,0.00042399,30]
[313496530,1707402634574,-170.40204778,0.00042399,30]
[313496531,1707402634598,-506.95493758,0.00042399,30]
[313496532,1707402634622,-500.0,0.00042399,30]
[313496533,1707402634645,-500.0,0.00042399,30]
[313496534,1707402634669,-509.14763108,0.00042399,30]
[313496535,1707402634693,-523.87062527,0.00042399,30]
[313496536,1707402634717,-474.39977836,0.00042399,30]
[313496537,1707402634743,-500.0,0.00042399,30]
[313496538,1707402634768,-500.0,0.00042399,30]
[313496539,1707402634793,-544.69086459,0.00042399,30]
[313496540,1707402634818,-500.0,0.00042399,30]
[313496541,1707402634845,-500.0,0.00042399,30]
[313496542,1707402634870,-528.74725187,0.00042399,30]
[313496543,1707402634893,-500.0,0.00042399,30]
[313496544,1707402634921,-500.0,0.00042399,30]
[313496545,1707402634946,-536.85379251,0.00042399,30]
[313496546,1707402634971,-500.0,0.00042399,30]
[313496547,1707402635091,-500.0,0.00042399,30]
[313496548,1707402635124,-500.0,0.00042399,30]
[313496549,1707402635150,-514.59162516,0.00042399,30]
[313496550,1707402635176,-500.0,0.00042399,30]
[313496551,1707402635204,-500.0,0.00042399,30]
[313496552,1707402635230,-500.0,0.00042399,30]
[313496553,1707402635258,-500.0,0.00042399,30]
[313496554,1707402635285,-500.0,0.00042399,30]
[313496555,1707402635312,-434.36352891,0.00042399,30]
[313496556,1707402635339,-500.0,0.00042399,30]
[313496557,1707402635366,-500.0,0.00042399,30]
[313496558,1707402635392,-500.0,0.00042399,30]
[313496559,1707402635425,-500.0,0.00042399,30]
[313496560,1707402635456,-517.10483953,0.00042399,30]
[313496561,1707402635485,-500.0,0.00042399,30]
[313496562,1707402635513,-181.35720655,0.00042399,30]
[313496563,1707402635539,-500.0,0.00042399,30]
[313496564,1707402635565,-406.41702012,0.00042399,30]
[313496565,1707402635592,-581.01505866,0.00042399,30]
[313496566,1707402635618,-528.77933268,0.00042399,30]
[313496567,1707402635645,-500.0,0.00042399,30]
[313496568,1707402635671,-624.30513985,0.00042399,30]
[313496569,1707402635695,-649.47922043,0.00042399,30]
[313496570,1707402635720,-529.33228509,0.00042399,30]
[313496571,1707402635746,-516.63712502,0.00042399,30]
[313496572,1707402635770,-538.16088745,0.00042399,30]
[313496573,1707402635795,-505.75117084,0.00042399,30]
[313496574,1707402635820,-516.97775747,0.00042399,30]
[313496575,1707402635845,-500.0,0.00042399,30]
[313496576,1707402635870,-500.0,0.00042399,30]
[313496577,1707402635895,-500.0,0.00042399,30]
[313496578,1707402635919,-153.79026655,0.00042399,30]
[313496579,1707402635945,-633.15118145,0.00042399,30]
[313496580,1707402635971,-500.0,0.00042399,30]
[313496581,1707402635999,-506.00963193,0.00042399,30]
[313496582,1707402636023,-597.15890822,0.00042399,30]
[313496583,1707402636047,-500.0,0.00042399,30]
[313496584,1707402636072,-500.0,0.00042399,30]
[313496585,1707402636097,-500.0,0.00042399,30]
[313496586,1707402636123,-533.282882,0.00042399,30]
[313496587,1707402636148,-500.0,0.00042399,30]
[313496588,1707402636178,-500.0,0.00042399,30]
[313496589,1707402636204,-518.86500277,0.00042399,30]
[313496590,1707402636229,-500.0,0.00042399,30]
[313496591,1707402636257,-390.24184767,0.00042399,30]
[313496592,1707402636282,-500.33999831,0.00042399,30]
[313496593,1707402636307,-207.71545468,0.00042399,30]
[313496594,1707402636331,-500.0,0.00042399,30]
[313496595,1707402636356,-500.0,0.00042399,30]
[313496596,1707402636382,-500.0,0.00042399,30]
[313496597,1707402636406,-535.30514763,0.00042399,30]
[313496598,1707402636436,-500.0,0.00042399,30]
[313496599,1707402636462,-500.0,0.00042399,30]
[313496600,1707402636489,-500.0,0.00042399,30]
[313496601,1707402636514,-168.27636006,0.00042399,30]
[313496602,1707402636540,-296.16908901,0.00042399,30]
[313496603,1707402636566,-513.02077173,0.00042399,30]
[313496604,1707402636589,-500.0,0.00042399,30]
[313496605,1707402636613,-500.0,0.00042399,30]
[313496606,1707402636637,-500.0,0.00042399,30]
[313496607,1707402636662,-500.0,0.00042399,30]
[313496608,1707402636685,-500.0,0.00042399,30]
[313496609,1707402636710,-500.0,0.00042399,30]
[313496610,1707402636735,-500.0,0.00042399,30]
[313496611,1707402636759,-500.0,0.00042399,30]
[313496612,1707402636783,-500.0,0.00042399,30]
[313496613,1707402636807,-334.2011399,0.00042399,30]
[313496614,1707402636831,-500.0,0.00042399,30]
[313496615,1707402636855,-500.0,0.00042399,30]
[313496616,1707402636878,-500.0,0.00042399,30]
[313496617,1707402636902,-500.0,0.00042399,30]
[313496618,1707402636926,-500.0,0.00042399,30]
[313496619,1707402636949,-503.7491996,0.00042399,30]
[313496620,1707402636975,-500.0,0.00042399,30]
[313496621,1707402637001,-500.0,0.00042399,30]
[313496622,1707402637024,-500.0,0.00042399,30]
[313496623,1707402637047,-500.0,0.00042399,30]
[313496624,1707402637070,-500.0,0.00042399,30]
[313496625,1707402637094,-500.0,0.00042399,30]
[313496626,1707402637118,-500.0,0.00042399,30]
[313496627,1707402637143,-495.998,0.00042399,30]
[313496628,1707402637167,-500.0,0.00042399,30]
[313496629,1707402637192,-548.15698326,0.00042399,30]
[313496630,1707402637218,-500.0,0.00042399,30]
[313496631,1707402637244,-500.0,0.00042399,30]
[313496632,1707402637270,-560.35250544,0.00042399,30]
[313496633,1707402637297,-500.0,0.00042399,30]
[313496634,1707402637323,-504.68149707,0.00042399,30]
[313496635,1707402637351,-500.0,0.00042399,30]
[313496636,1707402637376,-500.0,0.00042399,30]
[313496637,1707402637402,-500.0,0.00042399,30]
[313496638,1707402637516,-500.0,0.00042399,30]
[313496639,1707402637550,-500.0,0.00042399,30]
[313496640,1707402637575,-500.0,0.00042399,30]
[313496641,1707402637600,-500.0,0.00042399,30]
[313496642,1707402637623,-615.29604892,0.00042399,30]
[313496643,1707402637651,-500.0,0.00042399,30]
[313496646,1707402637675,-477.12706863,0.00042399,30]
[313496648,1707402637700,-500.0,0.00042399,30]
[313496649,1707402637724,-500.0,0.00042399,30]
[313496650,1707402637751,-500.0,0.00042399,30]
[313496651,1707402637776,-500.0,0.00042399,30]
[313496654,1707402637803,-385.19036761,0.00042399,30]
[313496655,1707402637826,-500.0,0.00042399,30]
[313496656,1707402637851,-537.81476155,0.00042399,30]
[313496657,1707402637877,-3051.91,0.00042399,30]
[313496658,1707402637902,-3051.91,0.00042399,30]
[313496659,1707402637927,-3051.91,0.00042399,30]
[313496660,1707402637951,-3051.91,0.00042399,30]
[313496662,1707402637974,-3051.91,0.00042399,30]
[313496663,1707402638001,-3051.91,0.00042399,30]
[313496665,1707402638026,-3051.91,0.00042399,30]
[313496669,1707402638051,-3051.91,0.00042399,30]
[313496672,1707402638077,-3051.91,0.00042399,30]
[313496676,1707402638103,-3051.91,0.00042399,30]
[313496679,1707402638129,-3051.91,0.00042399,30]
[313496682,1707402638153,-3051.91,0.00042399,30]
[313496686,1707402638178,-3051.91,0.00042399,30]
[313496690,1707402638204,-3051.91,0.00042399,30]
[313496694,1707402638228,-3051.91,0.00042399,30]
[313496697,1707402638257,-3051.91,0.00042399,30]
[313496701,1707402638284,-3051.91,0.00042399,30]
[313496705,1707402638308,-3051.91,0.00042399,30]
[313496709,1707402638334,-1143.74,0.00042399,30]
[313496712,1707402638359,-3051.91,0.00042399,30]
[313496716,1707402638384,-1143.74,0.00042399,30]
[313496720,1707402638409,-3051.91,0.00042399,30]
[313496722,1707402638434,-1143.74,0.00042399,30]
[313496723,1707402638462,-3051.91,0.00042399,30]
[313496724,1707402638489,-1143.74,0.00042399,30]
[313496725,1707402638515,-500.0,0.00042399,30]
[313496726,1707402638540,-534.38654867,0.00042399,30]
[313496727,1707402638564,-532.57558017,0.00042399,30]
[313496728,1707402638589,-3051.91,0.00042399,30]
[313496729,1707402638626,-1143.74,0.00042399,30]
[313496730,1707402638655,-3051.91,0.00042399,30]
[313496731,1707402638681,-1143.74,0.00042399,30]
[313496732,1707402638708,-3052.01526573,0.00042399,30]
[313496733,1707402638734,-1143.74,0.00042399,30]
[313496734,1707402638763,-1143.74,0.00042399,30]
[313496735,1707402638789,-1143.74,0.00042399,30]
[313496736,1707402638815,-1143.74,0.00042399,30]
[313496737,1707402638840,-1143.74,0.00042399,30]
[313496738,1707402638866,-1143.74,0.00042399,30]
[313496739,1707402638891,-1143.74,0.00042399,30]
[313496740,1707402638917,-1143.74,0.00042399,30]
[313496741,1707402638943,-1143.74,0.00042399,30]
[313496742,1707402638970,-1143.74,0.00042399,30]
[313496743,1707402638995,-1143.74,0.00042399,30]
[313496744,1707402639021,-1143.74,0.00042399,30]
[313496745,1707402639048,-1143.74,0.00042399,30]
[313496746,1707402639075,-1143.74,0.00042399,30]
[313496747,1707402639101,-1143.74,0.00042399,30]
[313496748,1707402639126,-1143.74,0.00042399,30]
[313496749,1707402639151,-1143.74,0.00042399,30]
[313496750,1707402639177,-1143.84893022,0.00042399,30]
[313496751,1707402639203,-457.5335524,0.00042399,30]
[313496752,1707402639228,-501.79870069,0.00042399,30]
[313496753,1707402639255,-500.0,0.00042399,30]
[313496754,1707402639280,-1196.4,0.00042399,30]
[313496755,1707402639306,-1196.4,0.00042399,30]
[313496756,1707402639331,-524.2786176,0.00042399,30]
[313496757,1707402639356,-1196.4,0.00042399,30]
[313496758,1707402639381,-1196.4,0.00042399,30]
[313496759,1707402639407,-1196.4,0.00042399,30]
[313496760,1707402639436,-1196.4,0.00042399,30]
[313496761,1707402639462,-1196.4,0.00042399,30]
[313496762,1707402639488,-1196.4,0.00042399,30]
[313496763,1707402639513,-1196.4,0.00042399,30]
[313496767,1707402639540,-1196.4,0.00042399,30]
[313496771,1707402639565,-1196.4,0.00042399,30]
[313496772,1707402639590,-1196.4,0.00042399,30]
[313496773,1707402639615,-1196.4,0.00042399,30]
[313496774,1707402639643,-1196.4,0.00042399,30]
[313496775,1707402639668,-500.0,0.00042399,30]
[313496776,1707402639693,-1196.4,0.00042399,30]
[313496777,1707402639718,-440.88245309,0.00042399,30]
[313496778,1707402639744,-1196.4,0.00042399,30]
[313496779,1707402639881,-1196.4,0.00042399,30]
[313496780,1707402639907,-1196.4,0.00042399,30]
[313496781,1707402639933,-500.0,0.00042399,30]
[313496782,1707402639958,-1196.4,0.00042399,30]
[313496783,1707402639984,-500.0,0.00042399,30]
[313496784,1707402640011,-1196.4,0.00042399,30]
[313496785,1707402640037,-607.31248177,0.00042399,30]
[313496786,1707402640063,-1196.4,0.00042399,30]
[313496787,1707402640088,-1196.4,0.00042399,30]
[313496788,1707402640113,-1196.4,0.00042399,30]
[313496789,1707402640137,-1196.51344214,0.00042399,30]
[313496790,1707402640162,-583.46317534,0.00042399,30]
[313496791,1707402640190,-500.0,0.00042399,30]
[313496792,1707402640215,-512.05866611,0.00042399,30]
[313496794,1707402640242,-568.2414606,0.00042399,30]
[313496796,1707402640268,-538.13,0.00042399,30]
[313496797,1707402640294,-538.13,0.00042399,30]
[313496798,1707402640319,-538.13,0.00042399,30]
[313496799,1707402640345,-538.13,0.00042399,30]
[313496800,1707402640372,-538.13,0.00042399,30]
[313496801,1707402640398,-538.13,0.00042399,30]
[313496802,1707402640425,-538.13,0.00042399,30]
[313496803,1707402640456,-538.13,0.00042399,30]
[313496804,1707402640482,-538.13,0.00042399,30]
[313496805,1707402640510,-538.13,0.00042399,30]
[313496806,1707402640535,-538.13,0.00042399,30]
[313496807,1707402640561,-538.13,0.00042399,30]
[313496808,1707402640588,-538.13,0.00042399,30]
[313496809,1707402640613,-538.13,0.00042399,30]
[313496810,1707402640639,-538.13,0.00042399,30]
[313496811,1707402640665,-538.13,0.00042399,30]
[313496812,1707402640692,-538.13,0.00042399,30]
[313496813,1707402640718,-538.13,0.00042399,30]
[313496814,1707402640744,-538.13,0.00042399,30]
[313496815,1707402640770,-538.13,0.00042399,30]
[313496816,1707402640796,-538.13,0.00042399,30]
[313496817,1707402640825,-538.13,0.00042399,30]
[313496818,1707402640851,-538.13,0.00042399,30]
[313496819,1707402640879,-538.19638607,0.00042399,30]
[313496820,1707402640905,-500.0,0.00042399,30]
[313496821,1707402640931,-503.90610437,0.00042399,30]
[313496822,1707402640956,-500.0,0.00042399,30]
[313496823,1707402640982,-500.0,0.00042399,30]
[313496824,1707402641009,-500.0,0.00042399,30]
[313496825,1707402641034,-500.0,0.00042399,30]
[313496826,1707402641058,-500.0,0.00042399,30]
[313496829,1707402641082,-582.26319384,0.00042399,30]
[313496830,1707402641106,-500.0,0.00042399,30]
[313496831,1707402641130,-500.0,0.00042399,30]
[313496832,1707402641155,-500.0,0.00042399,30]
[313496833,1707402641179,-500.0,0.00042399,30]
[313496834,1707402641203,-500.0,0.00042399,30]
[313496836,1707402641229,-500.0,0.00042399,30]
[313496838,1707402641258,-500.0,0.00042399,30]
[313496839,1707402641286,-301.9316419,0.00042399,30]
[313496840,1707402641313,-531.14585967,0.00042399,30]
[313496841,1707402641339,-601.39208847,0.00042399,30]
[313496842,1707402641366,-536.09186034,0.00042399,30]
[313496843,1707402641391,-500.0,0.00042399,30]
[313496844,1707402641417,-447.95341272,0.00042399,30]
[313496845,1707402641444,-962.02,0.00042399,30]
[313496846,1707402641470,-962.02,0.00042399,30]
[313496847,1707402641498,-962.02,0.00042399,30]
[313496848,1707402641523,-962.02,0.00042399,30]
[313496849,1707402641549,-962.02,0.00042399,30]
[313496850,1707402641575,-962.02,0.00042399,30]
[313496851,1707402641600,-962.02,0.00042399,30]
[313496852,1707402641626,-962.02,0.00042399,30]
[313496853,1707402641653,-962.02,0.00042399,30]
[313496854,1707402641678,-962.02,0.00042399,30]
[313496855,1707402641703,-962.02,0.00042399,30]
[313496856,1707402641729,-500.0,0.00042399,30]
[313496857,1707402641756,-962.02,0.00042399,30]
[313496858,1707402641784,-500.0,0.00042399,30]
[313496859,1707402641813,-962.02,0.00042399,30]
[313496860,1707402641840,-500.0,0.00042399,30]
[313496861,1707402641865,-524.3832229,0.00042399,30]
[313496862,1707402641891,-500.0,0.00042399,30]
[313496863,1707402641917,-962.02,0.00042399,30]
[313496864,1707402641941,-962.02,0.00042399,30]
[313496865,1707402641965,-962.02,0.00042399,30]
[313496866,1707402641993,-962.02,0.00042399,30]
[313496867,1707402642018,-962.02,0.00042399,30]
[313496868,1707402642043,-962.02,0.00042399,30]
[313496869,1707402642176,-962.02,0.00042399,30]
[313496870,1707402642201,-962.02,0.00042399,30]
[313496871,1707402642227,-962.02,0.00042399,30]
[313496872,1707402642254,-962.02,0.00042399,30]
[313496873,1707402642280,-962.08010253,0.00042399,30]
[313496874,1707402642306,-500.0,0.00042399,30]
[313496875,1707402642333,-561.53304519,0.00042399,30]
[313496876,1707402642361,-483.97220089,0.00042399,30]
[313496877,1707402642388,-500.0,0.00042399,30]
[313496878,1707402642414,-500.0,0.00042399,30]
[313496879,1707402642440,-575.1698452,0.00042399,30]
[313496880,1707402642469,-500.0,0.00042399,30]
[313496881,1707402642499,-500.0,0.00042399,30]
[313496882,1707402642528,-500.0,0.00042399,30]
[313496884,1707402642558,-500.0,0.00042399,30]
[313496886,1707402642587,-503.89577171,0.00042399,30]
[313496890,1707402642615,-500.0,0.00042399,30]
[313496894,1707402642644,-500.0,0.00042399,30]
[313496897,1707402642672,-500.0,0.00042399,30]
[313496899,1707402642700,-500.0,0.00042399,30]
[313496900,1707402642727,-500.0,0.00042399,30]
[313496901,1707402642757,-500.0,0.00042399,30]
[313496902,1707402642784,-500.0,0.00042399,30]
[313496903,1707402642809,-500.0,0.00042399,30]
[313496904,1707402642835,-500.0,0.00042399,30]
[313496907,1707402642860,-500.0,0.00042399,30]
[313496908,1707402642900,-521.02744265,0.00042399,30]
[313496909,1707402642928,-500.0,0.00042399,30]
[313496910,1707402642955,-500.0,0.00042399,30]
[313496912,1707402642982,-500.0,0.00042399,30]
[313496913,1707402643011,-500.0,0.00042399,30]
[313496914,1707402643037,-500.0,0.00042399,30]
[313496915,1707402643064,-500.0,0.00042399,30]
[313496917,1707402643090,-500.0,0.00042399,30]
[313496918,1707402643117,-525.84770506,0.00042399,30]
[313496920,1707402643144,-500.0,0.00042399,30]
[313496921,1707402643170,-516.29747344,0.00042399,30]
[313496922,1707402643198,-500.0,0.00042399,30]
[313496923,1707402643224,-500.0,0.00042399,30]
[313496924,1707402643250,-500.0,0.00042399,30]
[313496925,1707402643276,-500.0,0.00042399,30]
[313496926,1707402643303,-362.87357563,0.00042399,30]
[313496927,1707402643330,-200.0,0.00042399,30]
[313496928,1707402643357,-697.61,0.00042399,30]
[313496929,1707402643383,-500.0,0.00042399,30]
[313496930,1707402643409,-697.61,0.00042399,30]
[313496931,1707402643436,-627.93031551,0.00042399,30]
[313496932,1707402643463,-697.61,0.00042399,30]
[313496933,1707402643491,-697.61,0.00042399,30]
[313496934,1707402643518,-500.0,0.00042399,30]
[313496935,1707402643544,-500.0,0.00042399,30]
[313496936,1707402643571,-697.61,0.00042399,30]
[313496937,1707402643597,-500.0,0.00042399,30]
[313496938,1707402643623,-697.61,0.00042399,30]
[313496939,1707402643649,-500.0,0.00042399,30]
[313496940,1707402643676,-697.61,0.00042399,30]
[313496941,1707402643702,-697.61,0.00042399,30]
[313496942,1707402643727,-506.93010117,0.00042399,30]
[313496943,1707402643754,-500.0,0.00042399,30]
[313496944,1707402643780,-697.61,0.00042399,30]
[313496945,1707402643807,-505.05998963,0.00042399,30]
[313496946,1707402643833,-697.61,0.00042399,30]
[313496947,1707402643859,-697.61,0.00042399,30]
[313496948,1707402643884,-500.0,0.00042399,30]
[313496949,1707402643911,-697.61,0.00042399,30]
[313496950,1707402643936,-500.0,0.00042399,30]
[313496951,1707402643961,-697.61,0.00042399,30]
[313496952,1707402643987,-496.66696298,0.00042399,30]
[313496953,1707402644016,-697.61,0.00042399,30]
[313496954,1707402644041,-697.61,0.00042399,30]
[313496955,1707402644068,-697.61,0.00042399,30]
[313496956,1707402644094,-697.61,0.00042399,30]
[313496957,1707402644120,-697.61,0.00042399,30]
[313496958,1707402644146,-697.61,0.00042399,30]
[313496959,1707402644172,-697.61,0.00042399,30]
[313496960,1707402644199,-697.61,0.00042399,30]
[313496961,1707402644225,-697.61,0.00042399,30]
[313496962,1707402644251,-697.61,0.00042399,30]
[313496963,1707402644277,-697.82524258,0.00042399,30]
[313496964,1707402644302,-500.0,0.00042399,30]
[313496965,1707402644330,-505.75991507,0.00042399,30]
[313496966,1707402644708,-155.08840039,0.00021587,2]
[313496967,1707402644717,-352.27111843,0.00021587,2]
[313496968,1707402644726,-261.08056277,0.00021588,2]
[313496969,1707402644736,-1114.9970642,0.00021589,2]
[313496970,1707402644747,-324.06509508,0.0002159,2]
[313496971,1707402644756,-1118.84875665,0.00021591,2]
[313496972,1707402644766,-2606.4717958,0.00021591,2]
[313496973,1707402644775,-131.93611711,0.00021592,2]
[313496974,1707402644787,-848.92388041,0.00021592,2]
[313496975,1707402644796,-833.66848753,0.00021611,2]
[313496976,1707402644805,-24900.0,0.00021612,2]
[313496977,1707402644814,-1040.8718319,0.00021825,2]
[313496978,1707402644822,-166.666666,0.00021918,2]
[313496979,1707402644831,-715.4821902,0.00022057,2]
[313496980,1707402644840,-250.0,0.00022093,2]
[313496981,1707402644849,-247.567337,0.00022154,2]
[313496982,1707402644858,-166.488178,0.00023059,2]
[313496983,1707402644866,-166.666666,0.00023278,2]
[313496984,1707402644875,-536.1971125,0.00023303,5]
[313496985,1707402644884,-200.0,0.0002376,7]
[313496986,1707402644894,-710.73253856,0.00023894,2]
[313496987,1707402644903,-166.666666,0.00024638,2]
[313496988,1707402644912,-210.93358039,0.00025,2]
[313496989,1707402644921,-19124.88822616,0.00025732,2]
[313496990,1707402644930,-202.73463,0.00025734,2]
[313496991,1707402644939,-3079.4,0.00025884,3]
[313496992,1707402644947,-2566.17,0.00025884,3]
[313496993,1707402644956,-2138.47,0.00025884,3]
[313496994,1707402644965,-1782.06,0.00025884,3]
[313496995,1707402644973,-159.70804614,0.00025892,2]
[313496996,1707402644983,-50291.97992349,0.00025894,2]
[313496997,1707402645155,-16445.17701555,0.00025894,2]
[313496998,1707402645164,-325.02205765,0.00025992,2]
[313496999,1707402645173,-2465.67574349,0.00025992,2]
[313497000,1707402645183,-1265.83031586,0.00025992,2]
[313497001,1707402645191,-1803.71934173,0.00025992,2]
[313497002,1707402645200,-2189.69350103,0.00025992,2]
[313497003,1707402645210,-1575.7229414,0.00025992,2]
[313497004,1707402645219,-20917.8332955,0.00025992,2]